bitfinex-derivatives/quotes_BTCF0:USTF0_20251208
["timestamp","ask_amount","ask_price","bid_price","bid_amount"]
[1765196987804,0.0687378,91922.0,91921.0,0.06390313]
[1765196988918,0.0687378,91922.0,91921.0,0.06490313]
[1765196989502,0.0667378,91922.0,91921.0,0.05990313]
[1765196989698,0.0677378,91922.0,91921.0,0.06090313]
[1765196991102,0.0687378,91922.0,91921.0,0.06090313]
[1765197005008,0.0687378,91922.0,91921.0,0.00216313]
[1765197005210,0.0687378,91922.0,91921.0,0.03036313]
[1765197005913,0.0687378,91922.0,91921.0,0.05981313]
[1765197006310,0.0687378,91922.0,91921.0,0.07069113]
[1765197006611,0.0408978,91922.0,91921.0,0.07069113]
[1765197006998,0.03002,91922.0,91921.0,0.07069113]
[1765197007209,0.002,91922.0,91921.0,0.07069113]
[1765197007698,0.002,91922.0,91921.0,0.10984981]
[1765197008105,0.002,91922.0,91921.0,0.07069113]
[1765197008314,0.002,91922.0,91921.0,0.10984981]
[1765197009108,0.10424159,91931.0,91930.0,0.0848769]
[1765197009311,0.02864,91936.0,91935.0,0.0848763]
[1765197009911,0.0577,91936.0,91935.0,0.0848763]
[1765197010914,0.0637,91936.0,91935.0,0.0858763]
[1765197011117,0.0647,91936.0,91935.0,0.0858763]
[1765197011314,0.0587,91936.0,91935.0,0.0848763]
[1765197011616,0.0647,91936.0,91935.0,0.0858763]
[1765197013111,0.007,91936.0,91935.0,0.0858763]
[1765197014009,0.10424159,91950.0,91949.0,0.0678946]
[1765197014316,0.05748,91956.0,91955.0,0.0678939]
[1765197014507,0.0683535,91959.0,91958.0,0.0678936]
[1765197015518,0.05748,91959.0,91958.0,0.0678936]
[1765197017109,0.001,91959.0,91958.0,0.0688936]
[1765197021704,0.05848,91959.0,91958.0,0.0688936]
[1765197032627,0.02881,91959.0,91958.0,0.0688936]
[1765197032825,0.001,91959.0,91958.0,0.0688936]
[1765197033414,0.10440472,91968.0,91958.0,0.0688936]
[1765197033415,0.00016313,91968.0,91967.0,0.0678925]
[1765197033928,0.05764313,91968.0,91967.0,0.0678925]
[1765197034521,0.05764313,91968.0,91960.0,0.01637]
[1765197034522,0.00016313,91968.0,91960.0,0.05702]
[1765197034822,0.05748,91964.0,91963.0,0.0678929]
[1765197036225,0.05948,91964.0,91963.0,0.0688929]
[1765197038224,0.002,91964.0,91963.0,0.0688929]
[1765197042731,0.03094,91964.0,91963.0,0.0688929]
[1765197043036,0.002,91964.0,91963.0,0.0688929]
[1765197043835,0.03094,91964.0,91963.0,0.0688929]
[1765197044839,0.002,91964.0,91963.0,0.0688929]
[1765197046430,0.03094,91964.0,91963.0,0.0688929]
[1765197046631,0.05919,91964.0,91963.0,0.0688929]
[1765197048338,0.03094,91964.0,91963.0,0.0688929]
[1765197048730,0.002,91964.0,91963.0,0.0688929]
[1765197049327,0.002,91964.0,91963.0,0.09822026]
[1765197055036,0.002,91964.0,91963.0,0.0688929]
[1765197056532,0.00016313,91968.0,91967.0,0.0687725]
[1765197057837,0.00016313,91968.0,91967.0,0.0697725]
[1765197058037,0.00416313,91968.0,91967.0,0.0697725]
[1765197061151,0.00416313,91968.0,91967.0,0.09909782]
[1765197062142,0.00416313,91968.0,91967.0,0.0697725]
[1765197062941,3.13e-06,91968.0,91967.0,0.0697725]
[1765197064342,0.02772313,91968.0,91967.0,0.0697725]
[1765197064552,0.02772313,91968.0,91967.0,0.05100607]
[1765197064553,3.13e-06,91968.0,91967.0,0.05100607]
[1765197064851,3.13e-06,91968.0,91967.0,0.0118725]
[1765197066244,0.06856553,91968.0,91967.0,0.05100075]
[1765197066543,0.06856553,91968.0,91967.0,0.0683125]
[1765197066544,0.05769313,91968.0,91967.0,0.0683125]
[1765197066744,0.05769313,91968.0,91967.0,0.10744075]
[1765197066944,0.05769313,91968.0,91967.0,0.0683125]
[1765197067142,0.02772313,91968.0,91967.0,0.0683125]
[1765197067357,0.05769313,91968.0,91967.0,0.10744075]
[1765197067750,0.05769313,91968.0,91967.0,0.0683125]
[1765197067948,0.02772313,91968.0,91967.0,0.0683125]
[1765197068352,3.13e-06,91968.0,91967.0,0.0118725]
[1765197069146,3.13e-06,91968.0,91967.0,0.05100075]
[1765197073948,0.0564,91973.0,91972.0,0.0858319]
[1765197074258,0.01097696,91977.0,91972.0,0.0858319]
[1765197074259,0.05650556,91977.0,91976.0,0.0858315]
[1765197075348,0.05650556,91977.0,91976.0,0.05829]
[1765197075853,0.0672718,91973.0,91971.0,0.02933985]
[1765197076159,0.0564,91969.0,91968.0,0.08762985]
[1765197076355,0.0564,91969.0,91968.0,0.05829]
[1765197076861,0.01002,91975.0,91968.0,0.0691624]
[1765197077155,0.01002,91975.0,91967.0,0.02933985]
[1765197077156,0.0772923,91970.0,91969.0,0.05829]
[1765197077360,0.0672723,91970.0,91969.0,0.05829]
[1765197077751,0.0847623,91970.0,91969.0,0.05829]
[1765197078351,0.0672723,91970.0,91969.0,0.05829]
[1765197079464,0.0682723,91970.0,91969.0,0.06129]
[1765197080656,0.0857623,91970.0,91969.0,0.06129]
[1765197080859,0.0857623,91970.0,91969.0,0.003]
[1765197086267,0.14436519,91970.0,91969.0,0.003]
[1765197087467,0.0857623,91970.0,91969.0,0.003]
[1765197088865,0.0857623,91970.0,91969.0,0.06129]
[1765197090062,0.0857623,91970.0,91969.0,0.03165]
[1765197090457,0.0857623,91970.0,91969.0,0.06129]
[1765197090866,0.0682723,91970.0,91969.0,0.06129]
[1765197091474,0.0682723,91970.0,91969.0,0.03165]
[1765197091657,0.0682723,91970.0,91969.0,0.003]
[1765197093368,0.0682723,91970.0,91969.0,0.03165]
[1765197094466,0.0682723,91970.0,91969.0,0.003]
[1765197095470,0.0672739,91955.0,91954.0,0.05799389]
[1765197095676,0.0672739,91955.0,91954.0,0.08763389]
[1765197096070,0.0672739,91955.0,91954.0,0.05829]
[1765197096574,0.0672739,91955.0,91954.0,0.06029]
[1765197097376,0.0672739,91955.0,91954.0,0.08963389]
[1765197098078,0.0682739,91955.0,91954.0,0.09663389]
[1765197098775,0.0682739,91955.0,91954.0,0.09363389]
[1765197098982,0.0682739,91955.0,91954.0,0.09563389]
[1765197099276,0.0682739,91955.0,91954.0,0.06629]
[1765197100175,0.001,91955.0,91954.0,0.09563389]
[1765197100375,0.10409727,91980.0,91976.0,0.05829]
[1765197100580,0.05860289,91988.0,91976.0,0.05829]
[1765197100776,0.10409727,91990.0,91976.0,0.05829]
[1765197100969,0.06737686,91977.0,91976.0,0.05829]
[1765197101289,0.05650556,91977.0,91976.0,0.08759006]
[1765197101774,0.05950556,91977.0,91976.0,0.08859006]
[1765197101975,0.05950556,91977.0,91976.0,0.05929]
[1765197116884,0.03040556,91977.0,91976.0,0.05929]
[1765197117282,0.05881556,91977.0,91976.0,0.05929]
[1765197118580,0.05881556,91977.0,91976.0,0.001]
[1765197118976,0.05881556,91977.0,91976.0,0.02928]
[1765197119780,0.05881556,91977.0,91976.0,0.05811]
[1765197124883,0.00310556,91977.0,91976.0,0.05811]
[1765197125579,0.03262556,91977.0,91976.0,0.05811]
[1765197126388,0.06128556,91977.0,91976.0,0.05811]
[1765197161533,0.07003556,91977.0,91976.0,0.05811]
[1765197161718,0.07003556,91977.0,91976.0,0.001]
[1765197162225,0.07003556,91977.0,91976.0,0.03035]
[1765197163019,0.07003556,91977.0,91976.0,0.001]
[1765197163220,0.07003556,91977.0,91976.0,0.05787]
[1765197163628,0.06991,91960.0,91959.0,0.0391403]
[1765197163817,0.05948,91950.0,91949.0,0.02719313]
[1765197164020,0.05948,91950.0,91936.0,0.0276561]
[1765197164021,0.0108757,91940.0,91939.0,0.02703]
[1765197164328,0.0807857,91940.0,91939.0,0.05687]
[1765197165229,0.0827857,91940.0,91939.0,0.06787]
[1765197166130,0.0807857,91940.0,91939.0,0.05687]
[1765197166330,0.0817857,91940.0,91939.0,0.06087]
[1765197167622,0.0807857,91940.0,91939.0,0.05687]
[1765197167823,0.0817857,91940.0,91939.0,0.03003]
[1765197168023,0.0817857,91940.0,91939.0,0.003]
[1765197168226,0.0703568,91931.0,91930.0,0.05703313]
[1765197168531,0.05948,91931.0,91930.0,0.05703313]
[1765197169418,0.06048,91931.0,91930.0,0.06203313]
[1765197169824,0.06048,91931.0,91930.0,0.06403313]
[1765197180037,0.06048,91931.0,91930.0,0.00716313]
[1765197180539,0.06048,91931.0,91930.0,0.06263313]
[1765197181447,0.06048,91931.0,91930.0,0.03510313]
[1765197181834,0.06048,91931.0,91930.0,0.06263313]
[1765197187642,0.06048,91931.0,91930.0,0.00716313]
[1765197187834,0.06048,91931.0,91919.0,0.0108781]
[1765197187835,0.0584,91920.0,91919.0,0.0663481]
[1765197188932,0.0692781,91920.0,91919.0,0.0693481]
[1765197189542,0.0712781,91920.0,91919.0,0.0763481]
[1765197190447,0.0692781,91920.0,91919.0,0.0683481]
[1765197190746,0.0702781,91920.0,91919.0,0.0743481]
[1765197198851,0.0594,91920.0,91919.0,0.0743481]
[1765197199152,0.001,91920.0,91919.0,0.0743481]
[1765197199457,0.0578,91920.0,91919.0,0.0743481]
[1765197199953,0.001,91920.0,91919.0,0.0743481]
[1765197202156,0.02959,91920.0,91919.0,0.0743481]
[1765197206757,0.0578,91920.0,91919.0,0.0743481]
[1765197208159,0.02959,91920.0,91919.0,0.0743481]
[1765197209265,0.0578,91920.0,91919.0,0.0743481]
[1765197210854,0.001,91920.0,91919.0,0.0743481]
[1765197211054,0.00016313,91929.0,91928.0,0.0787271]
[1765197211462,0.0568,91947.0,91946.0,0.065755]
[1765197213259,0.0618,91947.0,91946.0,0.066755]
[1765197214365,0.0628,91947.0,91946.0,0.066755]
[1765197215062,0.0618,91947.0,91946.0,0.066755]
[1765197215257,0.0578,91947.0,91946.0,0.069755]
[1765197220164,0.0578,91947.0,91946.0,0.065755]
[1765197227967,0.001,91947.0,91946.0,0.065755]
[1765197228269,0.05719,91947.0,91946.0,0.065755]
[1765197259283,0.06807,91947.0,91946.0,0.004]
[1765197259477,0.085136,91938.0,91937.0,0.00016313]
[1765197259678,0.05682,91915.0,91914.0,0.07596]
[1765197259880,0.05682,91915.0,91914.0,0.0868388]
[1765197260675,0.05682,91915.0,91914.0,0.07596]
[1765197260879,0.05682,91915.0,91914.0,0.05836]
[1765197261080,0.05682,91915.0,91914.0,0.06536]
[1765197261081,0.05882,91915.0,91914.0,0.06536]
[1765197269800,0.05882,91915.0,91914.0,0.03564]
[1765197269999,0.05882,91915.0,91914.0,0.06536]
[1765197271599,0.05882,91915.0,91914.0,0.06836]
[1765197279013,0.05882,91915.0,91914.0,0.01]
[1765197279221,0.067701,91895.0,91885.0,0.1192]
[1765197279409,0.05682,91877.0,91876.0,0.1366406]
[1765197279712,0.05682,91877.0,91876.0,0.05836]
[1765197280519,0.05693919,91877.0,91876.0,0.05836]
[1765197280811,0.05893919,91877.0,91876.0,0.06236]
[1765197281417,0.05993919,91877.0,91876.0,0.06036]
[1765197282018,0.06093919,91877.0,91876.0,0.06036]
[1765197284020,0.05893919,91877.0,91876.0,0.05936]
[1765197286823,0.06193919,91877.0,91876.0,0.05836]
[1765197287408,0.06782239,91877.0,91876.0,0.05836]
[1765197287627,0.07282239,91877.0,91876.0,0.05836]
[1765197288116,0.06293919,91877.0,91876.0,0.05836]
[1765197288323,0.03355919,91877.0,91876.0,0.05836]
[1765197288524,0.06089919,91877.0,91876.0,0.05836]
[1765197289022,0.03355919,91877.0,91876.0,0.05836]
[1765197289214,0.06089919,91877.0,91876.0,0.05836]
[1765197290022,0.05989919,91877.0,91876.0,0.05836]
[1765197290223,0.05989919,91877.0,91876.0,0.05936]
[1765197290522,0.05489919,91877.0,91876.0,0.05936]
[1765197290723,0.05889919,91877.0,91876.0,0.05936]
[1765197290923,0.05889919,91877.0,91876.0,0.05836]
[1765197291108,0.00011919,91877.0,91876.0,0.05936]
[1765197291309,0.00411919,91877.0,91876.0,0.05936]
[1765197293423,0.00411919,91877.0,91876.0,0.05836]
[1765197293622,0.05514919,91877.0,91876.0,0.05936]
[1765197293822,0.05814919,91877.0,91876.0,0.05936]
[1765197294218,0.05514919,91877.0,91876.0,0.05836]
[1765197294424,0.05714919,91877.0,91876.0,0.05936]
[1765197295225,0.02980919,91877.0,91876.0,0.05936]
[1765197295929,0.05714919,91877.0,91876.0,0.05936]
[1765197296114,0.05814919,91877.0,91876.0,0.05936]
[1765197298814,0.05814919,91877.0,91875.0,0.0176]
[1765197298815,0.05966,91835.0,91834.0,0.02842]
[1765197299020,0.05966,91829.0,91828.0,0.000136]
[1765197299324,0.05966,91801.0,91800.0,0.05833]
[1765197299519,0.07694,91798.0,91797.0,0.0692226]
[1765197299821,0.05966,91798.0,91797.0,0.05833]
[1765197300019,0.07071484,91807.0,91806.0,0.05833]
[1765197300215,0.07071484,91807.0,91798.0,0.07543]
[1765197300216,0.05966,91799.0,91798.0,0.07543]
[1765197300416,0.05966,91799.0,91798.0,0.05833]
[1765197300617,0.01728,91798.0,91791.0,0.02991]
[1765197300826,0.05966,91789.0,91788.0,0.05849334]
[1765197301024,8.613e-05,91789.0,91788.0,0.06938704]
[1765197302228,0.05974613,91789.0,91788.0,0.05849334]
[1765197302418,8.613e-05,91789.0,91788.0,0.05849334]
[1765197303223,0.00208613,91789.0,91788.0,0.05849334]
[1765197303927,0.00208613,91789.0,91788.0,0.06049334]
[1765197304320,8.613e-05,91789.0,91788.0,0.06049334]
[1765197304516,0.0582695,91820.0,91788.0,0.43207334]
[1765197304720,0.10453568,91810.0,91806.0,0.05833]
[1765197304924,0.10453568,91830.0,91806.0,0.05833]
[1765197305127,0.0755495,91833.0,91832.0,0.05833]
[1765197305128,0.05966,91833.0,91832.0,0.05833]
[1765197305330,0.08655618,91833.0,91832.0,0.05833]
[1765197305522,0.05966,91820.0,91819.0,0.02842]
[1765197305827,0.05966,91820.0,91819.0,0.05833]
[1765197306715,0.06366,91820.0,91819.0,0.05833]
[1765197307320,0.06266,91820.0,91819.0,0.05933]
[1765197308235,0.06266,91820.0,91819.0,0.02942]
[1765197308622,0.0895677,91820.0,91819.0,0.02942]
[1765197308821,0.0895677,91820.0,91819.0,0.05933]
[1765197309623,0.0885677,91820.0,91819.0,0.05833]
[1765197309919,0.002,91820.0,91819.0,0.06922]
[1765197310128,0.00016334,91829.0,91828.0,0.069219]
[1765197310437,0.0271272,91829.0,91828.0,0.069219]
[1765197311032,0.0570372,91829.0,91828.0,0.069219]
[1765197312027,0.0570372,91829.0,91828.0,0.070219]
[1765197312028,0.0271272,91829.0,91828.0,0.070219]
[1765197312221,0.00016334,91829.0,91828.0,0.070219]
[1765197312539,0.00216334,91829.0,91828.0,0.070219]
[1765197313632,0.00016334,91829.0,91828.0,0.072219]
[1765197313833,0.00216334,91829.0,91828.0,0.072219]
[1765197314235,0.00016334,91829.0,91828.0,0.072219]
[1765197314433,0.00216334,91829.0,91828.0,0.072219]
[1765197315133,0.00216334,91829.0,91828.0,0.069219]
[1765197315323,0.00216334,91829.0,91828.0,0.071219]
[1765197317126,0.03008334,91829.0,91828.0,0.071219]
[1765197319733,0.00216334,91829.0,91828.0,0.071219]
[1765197319927,0.02808334,91829.0,91828.0,0.071219]
[1765197320127,0.03008334,91829.0,91828.0,0.071219]
[1765197320324,0.05892334,91829.0,91828.0,0.071219]
[1765197321335,0.08589517,91829.0,91828.0,0.002]
[1765197322136,0.05676,91823.0,91822.0,0.0379897]
[1765197322323,0.08373183,91823.0,91822.0,0.0677097]
[1765197323325,0.08573183,91823.0,91822.0,0.0677097]
[1765197323730,0.08373183,91823.0,91822.0,0.0677097]
[1765197323931,0.08573183,91823.0,91822.0,0.0677097]
[1765197324339,0.08373183,91823.0,91822.0,0.0687097]
[1765197324536,0.08573183,91823.0,91822.0,0.0687097]
[1765197325227,0.08573183,91823.0,91822.0,0.0677097]
[1765197325424,0.08573183,91823.0,91822.0,0.0687097]
[1765197326032,0.08373183,91823.0,91822.0,0.0687097]
[1765197326229,0.08573183,91823.0,91822.0,0.0687097]
[1765197326636,0.05676,91823.0,91822.0,0.0687097]
[1765197326836,0.05876,91823.0,91822.0,0.0687097]
[1765197327339,0.08278504,91823.0,91822.0,0.0687097]
[1765197327734,0.05394504,91823.0,91822.0,0.0687097]
[1765197328340,0.05394504,91823.0,91822.0,0.0677097]
[1765197328540,0.05394504,91823.0,91822.0,0.0687097]
[1765197328940,0.02602504,91823.0,91822.0,0.0687097]
[1765197329645,0.05394504,91823.0,91822.0,0.0687097]
[1765197329836,0.05194504,91823.0,91822.0,0.0687097]
[1765197330036,0.08278504,91823.0,91822.0,0.0687097]
[1765197331641,0.08278504,91823.0,91822.0,0.0677097]
[1765197331843,0.08278504,91823.0,91822.0,0.0697097]
[1765197333040,0.02602504,91823.0,91822.0,0.0697097]
[1765197333243,0.00016334,91829.0,91828.0,0.067709]
[1765197334135,0.02417927,91829.0,91828.0,0.067709]
[1765197334537,0.02417927,91829.0,91828.0,0.068709]
[1765197335438,0.02417927,91829.0,91828.0,0.069709]
[1765197335639,0.02617927,91829.0,91828.0,0.069709]
[1765197336246,0.00216334,91829.0,91828.0,0.069709]
[1765197336646,0.00016334,91829.0,91828.0,0.069709]
[1765197336848,0.00216334,91829.0,91828.0,0.071709]
[1765197337051,0.00216334,91829.0,91828.0,0.072709]
[1765197346446,0.0855955,91854.0,91828.0,0.072709]
[1765197346447,0.05747,91854.0,91853.0,0.067746]
[1765197346650,0.08137751,91854.0,91853.0,0.067746]
[1765197348454,0.08337751,91854.0,91853.0,0.069746]
[1765197349150,0.08337751,91854.0,91853.0,0.070746]
[1765197349353,0.08137751,91854.0,91853.0,0.068746]
[1765197349545,0.08337751,91854.0,91853.0,0.071746]
[1765197351450,0.08337751,91854.0,91853.0,0.068746]
[1765197351657,0.08337751,91854.0,91853.0,0.071746]
[1765197352655,0.08337751,91854.0,91853.0,0.073746]
[1765197352863,0.08337751,91854.0,91853.0,0.072746]
[1765197353058,0.08337751,91854.0,91853.0,0.073746]
[1765197353661,0.08337751,91854.0,91853.0,0.072746]
[1765197353848,0.08337751,91854.0,91853.0,0.073746]
[1765197354653,0.08337751,91854.0,91853.0,0.068746]
[1765197354958,0.08337751,91854.0,91853.0,0.073746]
[1765197355453,0.08137751,91854.0,91853.0,0.073746]
[1765197355654,0.08337751,91854.0,91853.0,0.073746]
[1765197356159,0.08337751,91854.0,91853.0,0.072746]
[1765197356360,0.08334625,91854.0,91853.0,0.073746]
[1765197356860,0.05947,91854.0,91853.0,0.073746]
[1765197358255,0.05947,91854.0,91853.0,0.072746]
[1765197358450,0.05947,91854.0,91853.0,0.073746]
[1765197358949,0.05947,91854.0,91853.0,0.068746]
[1765197358950,0.05747,91854.0,91853.0,0.068746]
[1765197359146,0.05947,91854.0,91853.0,0.073746]
[1765197359659,0.08291353,91854.0,91853.0,0.073746]
[1765197360048,0.08291353,91854.0,91853.0,0.016886]
[1765197360758,0.08291353,91854.0,91853.0,0.006]
[1765197361654,0.08291353,91854.0,91853.0,0.03546]
[1765197361854,0.08291353,91854.0,91853.0,0.06307]
[1765197363056,0.08291353,91854.0,91853.0,0.03361]
[1765197363256,0.08291353,91854.0,91853.0,0.006]
[1765197364364,0.07294,91845.0,91830.0,0.05862925]
[1765197364668,0.01277,91840.0,91828.0,0.06785408]
[1765197364858,0.09083123,91839.0,91838.0,0.0108878]
[1765197365058,0.09083123,91839.0,91838.0,0.00922849]
[1765197365762,0.0838287,91830.0,91829.0,0.00016334]
[1765197365961,0.10727223,91830.0,91829.0,0.00016334]
[1765197366958,0.10727223,91830.0,91829.0,3e-05]
[1765197367961,0.10927223,91830.0,91829.0,3e-05]
[1765197368362,0.10927223,91830.0,91829.0,0.00203]
[1765197370968,0.0108905,91816.0,91814.0,0.0108906]
[1765197371174,0.0565,91801.0,91800.0,0.05707]
[1765197373968,0.0565,91801.0,91800.0,0.05907]
[1765197374362,0.0585,91801.0,91800.0,0.05907]
[1765197374561,0.0585,91801.0,91800.0,0.05807]
[1765197374761,0.0565,91801.0,91800.0,0.05807]
[1765197374957,0.0585,91801.0,91800.0,0.05807]
[1765197375372,0.0565,91801.0,91800.0,0.05807]
[1765197375565,0.0585,91801.0,91800.0,0.05807]
[1765197375966,0.0565,91801.0,91800.0,0.05807]
[1765197376161,0.0585,91801.0,91800.0,0.05807]
[1765197376474,0.0585,91801.0,91800.0,0.06517]
[1765197376774,0.06005,91801.0,91800.0,0.06517]
[1765197377075,0.06005,91801.0,91800.0,0.05907]
[1765197377974,0.05805,91801.0,91800.0,0.05907]
[1765197378164,0.06005,91801.0,91800.0,0.05907]
[1765197379469,0.06005,91801.0,91800.0,0.0764]
[1765197379665,0.05699334,91810.0,91809.0,0.0672812]
[1765197380475,0.05699334,91810.0,91809.0,0.0108912]
[1765197380776,0.05699334,91810.0,91809.0,0.0118912]
[1765197380976,0.05699334,91810.0,91809.0,0.0682812]
[1765197381175,0.05899334,91810.0,91809.0,0.0682812]
[1765197381878,0.05899334,91810.0,91809.0,0.0411012]
[1765197382174,0.05899334,91810.0,91809.0,0.0118912]
[1765197383979,0.05899334,91810.0,91791.0,0.04026674]
[1765197383980,0.05683,91792.0,91791.0,0.04026674]
[1765197384371,0.05683,91792.0,91791.0,0.06744674]
[1765197385467,0.05883,91792.0,91791.0,0.06744674]
[1765197386082,0.05883,91792.0,91791.0,0.07044674]
[1765197390794,0.05883,91792.0,91791.0,0.01405674]
[1765197390992,0.05883,91792.0,91791.0,0.04326674]
[1765197391194,0.0731,91776.0,91775.0,0.05862925]
[1765197391389,0.0731,91776.0,91766.0,0.07794117]
[1765197391390,0.0731,91770.0,91769.0,0.010896]
[1765197391599,0.05683,91770.0,91769.0,0.067286]
[1765197391803,0.16121884,91779.0,91778.0,0.0672849]
[1765197392009,0.05683,91779.0,91778.0,0.0672849]
[1765197392402,0.22357111,91788.0,91778.0,0.0672849]
[1765197392403,0.16138227,91788.0,91787.0,0.0672838]
[1765197392607,0.05699343,91788.0,91787.0,0.0672838]
[1765197393907,0.00016343,91788.0,91787.0,0.0672838]
[1765197394302,0.00016343,91788.0,91787.0,0.0682838]
[1765197395000,0.05699343,91788.0,91787.0,0.0682838]
[1765197395203,0.05899343,91788.0,91787.0,0.0682838]
[1765197395698,0.05699343,91788.0,91787.0,0.0682838]
[1765197395901,0.05899343,91788.0,91787.0,0.0682838]
[1765197396107,0.05899343,91788.0,91787.0,0.0692838]
[1765197396908,0.05899343,91788.0,91787.0,0.0682838]
[1765197397507,0.05699343,91788.0,91787.0,0.0682838]
[1765197397714,0.05899343,91788.0,91787.0,0.0672838]
[1765197398517,0.02989343,91788.0,91787.0,0.0672838]
[1765197398705,0.02789343,91788.0,91787.0,0.0672838]
[1765197398908,0.02989343,91788.0,91787.0,0.0672838]
[1765197399310,0.02989343,91788.0,91787.0,0.0682838]
[1765197399613,0.0534575,91788.0,91787.0,0.0682838]
[1765197400012,0.0534575,91788.0,91787.0,0.0672838]
[1765197400212,0.0825575,91788.0,91787.0,0.0682838]
[1765197401607,0.0805575,91788.0,91787.0,0.0682838]
[1765197401918,0.0825575,91788.0,91787.0,0.0682838]
[1765197404317,0.0805575,91788.0,91787.0,0.0682838]
[1765197404514,0.0825575,91788.0,91787.0,0.0682838]
[1765197404720,0.0257275,91788.0,91787.0,0.0682838]
[1765197404919,0.00216343,91788.0,91787.0,0.0682838]
[1765197405117,0.05536,91810.0,91809.0,0.0662812]
[1765197405322,0.07893514,91810.0,91809.0,0.0662812]
[1765197406327,0.08093514,91810.0,91809.0,0.0662812]
[1765197407025,0.08393514,91810.0,91809.0,0.0672812]
[1765197408124,0.08093514,91810.0,91809.0,0.0662812]
[1765197408430,0.08293514,91810.0,91809.0,0.0682812]
[1765197408921,0.08093514,91810.0,91809.0,0.0682812]
[1765197409930,0.08093514,91810.0,91809.0,0.0692812]
[1765197410519,0.08093514,91810.0,91809.0,0.0702812]
[1765197411023,0.08093514,91810.0,91809.0,0.0148912]
[1765197411530,0.08093514,91810.0,91809.0,0.0702812]
[1765197411731,0.07893514,91810.0,91809.0,0.0672812]
[1765197411921,0.08093514,91810.0,91809.0,0.0702812]
[1765197412736,0.08093514,91810.0,91809.0,0.0692812]
[1765197414025,0.07893514,91810.0,91809.0,0.0662812]
[1765197414227,0.08093514,91810.0,91809.0,0.0692812]
[1765197416737,0.07893514,91810.0,91809.0,0.0672812]
[1765197416926,0.05262514,91810.0,91809.0,0.0702812]
[1765197417123,0.02905,91810.0,91809.0,0.0702812]
[1765197417834,0.002,91810.0,91809.0,0.0702812]
[1765197418031,0.02905,91810.0,91809.0,0.08108905]
[1765197418433,0.05736,91810.0,91809.0,0.08108905]
[1765197419134,0.05736,91810.0,91809.0,0.08208905]
[1765197419633,0.002,91810.0,91809.0,0.08208905]
[1765197420039,0.05625343,91819.0,91818.0,0.0663202]
[1765197420337,0.07972206,91819.0,91818.0,0.0663202]
[1765197420933,0.05625343,91819.0,91818.0,0.0663202]
[1765197421135,0.05625343,91819.0,91818.0,0.0108902]
[1765197422328,0.05625343,91819.0,91818.0,0.0387102]
[1765197422739,0.05825343,91819.0,91818.0,0.0417102]
[1765197422933,0.05825343,91819.0,91818.0,0.0693202]
[1765197423129,0.05825343,91819.0,91818.0,0.0859202]
[1765197423833,0.05625343,91819.0,91818.0,0.0829202]
[1765197424023,0.05825343,91819.0,91818.0,0.0859202]
[1765197424532,0.00216343,91819.0,91818.0,0.0859202]
[1765197425534,0.00216343,91819.0,91818.0,0.0869202]
[1765197425934,0.00016343,91819.0,91818.0,0.0839202]
[1765197426135,0.00216343,91819.0,91818.0,0.0869202]
[1765197426531,0.00016343,91819.0,91818.0,0.0839202]
[1765197426731,0.00216343,91819.0,91818.0,0.0869202]
[1765197427131,0.00016343,91819.0,91818.0,0.0839202]
[1765197427331,0.00216343,91819.0,91818.0,0.0869202]
[1765197427740,0.00216343,91819.0,91818.0,0.0859202]
[1765197427938,0.00216343,91819.0,91818.0,0.0869202]
[1765197434334,0.0108879,91838.0,91829.0,0.0108889]
[1765197434530,0.05882,91830.0,91829.0,0.0680589]
[1765197434729,0.08230447,91830.0,91829.0,0.0680589]
[1765197435034,0.09887447,91830.0,91829.0,0.0680589]
[1765197435939,0.10087447,91830.0,91829.0,0.0710589]
[1765197439235,0.08430447,91830.0,91829.0,0.0710589]
[1765197439439,0.00016334,91839.0,91838.0,0.0680578]
[1765197439743,0.05882,91854.0,91853.0,0.068056]
[1765197441950,0.06082,91854.0,91853.0,0.073056]
[1765197443051,0.05882,91854.0,91853.0,0.068056]
[1765197443255,0.06082,91854.0,91853.0,0.074056]
[1765197446139,0.06082,91854.0,91844.0,0.0111193]
[1765197446140,0.05882,91845.0,91844.0,0.04007044]
[1765197446443,0.05882,91845.0,91844.0,0.00016334]
[1765197448050,0.05882,91845.0,91844.0,0.00216334]
[1765197448750,0.06082,91845.0,91844.0,0.01116334]
[1765197450456,0.06082,91845.0,91844.0,0.06833334]
[1765197451448,0.08400897,91845.0,91844.0,0.06833334]
[1765197452754,0.08400897,91845.0,91844.0,0.01116334]
[1765197456461,0.08400897,91845.0,91844.0,0.06833334]
[1765197459462,0.08400897,91845.0,91844.0,0.01116334]
[1765197460465,0.08400897,91845.0,91844.0,0.04018334]
[1765197461364,0.08400897,91845.0,91844.0,0.01116334]
[1765197463261,0.10134897,91845.0,91844.0,0.06910334]
[1765197463458,0.10134897,91845.0,91844.0,0.04018334]
[1765197465269,0.10134897,91845.0,91844.0,0.01116334]
[1765197465770,0.10134897,91845.0,91844.0,0.02205044]
[1765197467959,0.10134897,91845.0,91844.0,0.05003044]
[1765197469364,0.08400897,91845.0,91844.0,0.07895044]
[1765197469566,0.09433897,91845.0,91844.0,0.07895044]
[1765197470362,0.08400897,91845.0,91844.0,0.07895044]
[1765197472471,0.11223597,91845.0,91844.0,0.01116334]
[1765197475667,0.11223597,91845.0,91844.0,0.03914334]
[1765197476560,0.11223597,91845.0,91844.0,0.06806334]
[1765197476874,0.09489597,91845.0,91844.0,0.06806334]
[1765197477977,0.08400897,91845.0,91844.0,0.06806334]
[1765197479471,0.09370897,91845.0,91844.0,0.01116334]
[1765197479874,0.09370897,91845.0,91844.0,0.03979334]
[1765197480273,0.09370897,91845.0,91844.0,0.01116334]
[1765197480578,0.09370897,91845.0,91844.0,0.03979334]
[1765197481389,0.09370897,91845.0,91844.0,0.06845334]
[1765197489976,0.08190897,91845.0,91844.0,0.06845334]
[1765197493480,0.09969897,91845.0,91844.0,0.03979334]
[1765197493779,0.09969897,91845.0,91844.0,0.01116334]
[1765197494391,0.09969897,91845.0,91820.0,0.0834999]
[1765197494392,0.05678,91821.0,91820.0,0.0834999]
[1765197494677,0.07996897,91821.0,91820.0,0.0834999]
[1765197496888,0.08196897,91821.0,91820.0,0.0864999]
[1765197497381,0.07996897,91821.0,91820.0,0.0834999]
[1765197497577,0.08196897,91821.0,91820.0,0.0874999]
[1765197500285,0.05878,91821.0,91820.0,0.0874999]
[1765197501287,0.05678,91821.0,91820.0,0.0834999]
[1765197501475,0.05878,91821.0,91820.0,0.0874999]